fUST/lending_fUST_20250419
["ID","MTS","AMOUNT","RATE_DAILY","PERIOD"]
[358374908,1745011842476,-500.0,0.00021917,2]
[358374909,1745011842485,-500.0,0.00021917,2]
[358374910,1745011842495,-3731.54,0.00021917,2]
[358374911,1745011842504,-500.0,0.00021917,2]
[358374912,1745011842513,-364.13470118,0.00021917,2]
[358374913,1745011842523,-500.0,0.00021917,2]
[358374914,1745011842533,-931.94,0.00021917,2]
[358374915,1745011842542,-837.72,0.00021917,2]
[358374916,1745011842552,-10472.91,0.00021917,2]
[358374917,1745011842562,-641.53860986,0.00021917,2]
[358374918,1745011842572,-500.0,0.00021917,2]
[358374919,1745011842582,-876.47,0.00021917,2]
[358374920,1745011842592,-1722.94,0.00021917,2]
[358374921,1745011842602,-500.0,0.00021917,2]
[358374922,1745011842611,-500.0,0.00021917,2]
[358374923,1745011842622,-1697.44,0.00021917,2]
[358374924,1745011842632,-543.66,0.00021917,2]
[358374925,1745011842642,-500.0,0.00021917,2]
[358374926,1745011842651,-500.0,0.00021917,2]
[358374927,1745011842661,-2498.93,0.00021917,2]
[358374928,1745011842671,-3286.09,0.00021917,2]
[358374929,1745011842681,-500.0,0.00021917,2]
[358374930,1745011842690,-500.0,0.00021917,2]
[358374931,1745011842700,-500.0,0.00021917,2]
[358374932,1745011842710,-500.0,0.00021917,2]
[358374933,1745011842720,-1121.64,0.00021917,2]
[358374934,1745011842730,-500.0,0.00021917,2]
[358374935,1745011842740,-945.37,0.00021917,2]
[358374936,1745011842750,-510.48,0.00021917,2]
[358374937,1745011842760,-500.0,0.00021917,2]
[358374938,1745011842769,-590.94,0.00021917,2]
[358374939,1745011842779,-567.62256672,0.00021917,2]
[358374940,1745011842789,-500.0,0.00021917,2]
[358374941,1745011842799,-822.16,0.00021917,2]
[358374942,1745011842808,-589.14724247,0.00021917,2]
[358374943,1745011842818,-514.78,0.00021917,2]
[358374944,1745011842828,-500.0,0.00021917,2]
[358374945,1745011842838,-1062.38,0.00021917,2]
[358374946,1745011842849,-500.0,0.00021917,2]
[358374947,1745011842859,-208.05184628,0.00021917,2]
[358374948,1745011842873,-291.94815372,0.00021917,2]
[358374949,1745011842883,-500.0,0.00021917,2]
[358374950,1745011842893,-786.65,0.00021917,2]
[358374951,1745011842902,-500.0,0.00021917,2]
[358374952,1745011842911,-500.0,0.00021917,2]
[358374953,1745011842920,-500.0,0.00021917,2]
[358374954,1745011842930,-500.0,0.00021917,2]
[358374955,1745011842940,-706.74,0.00021917,2]
[358374956,1745011842950,-582.53,0.00021917,2]
[358374957,1745011842960,-500.0,0.00021917,2]
[358374958,1745011842970,-660.44,0.00021917,2]
[358374959,1745011842980,-500.0,0.00021917,2]
[358374960,1745011842990,-500.0,0.00021917,2]
[358374961,1745011843000,-500.0,0.00021917,2]
[358374962,1745011843009,-12.94573215,0.00021917,2]
[358374963,1745011843022,-1000.0,0.00021917,2]
[358374964,1745011843038,-268.735003,0.00021917,2]
[358374971,1745011846699,-544.0,0.00021234,2]
[358374972,1745011846709,-42.93926485,0.00021917,2]
[358374973,1745011846719,-2630.81,0.00021917,2]
[358374974,1745011846729,-1132.45,0.00021917,2]
[358374975,1745011846739,-212.62808978,0.00021917,2]
[358374976,1745011846750,-500.0,0.00021917,2]
[358374977,1745011846760,-588.47,0.00021917,2]
[358374978,1745011846770,-516.47,0.00021917,2]
[358374979,1745011846780,-6335.33,0.00021917,2]
[358374980,1745011846790,-519.43,0.00021917,2]
[358374981,1745011846799,-500.0,0.00021917,2]
[358374982,1745011846809,-1559.86,0.00021917,2]
[358374983,1745011846819,-500.0,0.00021917,2]
[358374984,1745011846829,-500.0,0.00021917,2]
[358374985,1745011846839,-500.0,0.00021917,2]
[358374986,1745011846849,-667.87,0.00021917,2]
[358374987,1745011846859,-500.0,0.00021917,2]
[358374988,1745011846868,-500.0,0.00021917,2]
[358374989,1745011846878,-500.0,0.00021917,2]
[358374990,1745011846887,-327.93966635,0.00021917,2]
[358374991,1745011846912,-172.06033365,0.00021917,2]
[358374992,1745011846923,-500.0,0.00021917,2]
[358374993,1745011846933,-500.0,0.00021917,2]
[358374994,1745011846944,-500.0,0.00021917,2]
[358374995,1745011846954,-500.0,0.00021917,2]
[358374996,1745011846964,-500.0,0.00021917,2]
[358374997,1745011846974,-500.0,0.00021917,2]
[358374998,1745011846984,-602.94287536,0.00021917,2]
[358374999,1745011846997,-338.86712464,0.00021917,2]
[358375000,1745011847007,-748.13,0.00021917,2]
[358375001,1745011847017,-500.0,0.00021917,2]
[358375002,1745011847027,-500.0,0.00021917,2]
[358375003,1745011847037,-508.47,0.00021917,2]
[358375004,1745011847046,-2074.36004016,0.00021917,2]
[358375005,1745011847063,-633.60000015,0.00021917,2]
[358375006,1745011905755,-544.47982878,0.00018044,2]
[358375007,1745012032204,24900.0,0.00017192,2]
[358375009,1745012333232,183.8430431,0.00017436,2]
[358375010,1745012381345,180.1671302,0.00017436,2]
[358375012,1745012596681,327.3529071,0.0001717,2]
[358375013,1745012597168,-185.18248395,0.00018044,2]
[358375014,1745012615577,276.437741,0.0001717,2]
[358375020,1745012715178,534.6669232,0.00017169,2]
[358375021,1745012759161,784.6883367,0.00017169,2]
[358375076,1745013031706,-270.33768727,0.00018044,2]
[358375079,1745013031716,-1159.8450681,0.00018066,2]
[358375081,1745013031726,-1360.03398271,0.00018073,2]
[358375083,1745013031735,-300.0,0.00018165,2]
[358375084,1745013031745,-300.0,0.00018166,2]
[358375086,1745013031755,-500.0,0.00018166,2]
[358375088,1745013031764,-500.0,0.00018166,2]
[358375090,1745013031774,-500.0,0.00018166,2]
[358375092,1745013031785,-500.0,0.00018166,2]
[358375094,1745013031795,-500.0,0.00018166,2]
[358375095,1745013031805,-500.0,0.00018166,2]
[358375097,1745013031815,-500.0,0.00018166,2]
[358375099,1745013031826,-500.0,0.00018166,2]
[358375101,1745013031836,-500.0,0.00018166,2]
[358375103,1745013031845,-629.893881,0.00018166,2]
[358375104,1745013031855,-498.22354538,0.00018166,2]
[358375105,1745013031864,-500.0,0.00018166,2]
[358375106,1745013031874,-500.0,0.00018166,2]
[358375107,1745013031885,-500.0,0.00018166,2]
[358375108,1745013031895,-500.0,0.00018166,2]
[358375109,1745013031905,-500.0,0.00018166,2]
[358375110,1745013031915,-500.0,0.00018166,2]
[358375111,1745013031924,-500.0,0.00018166,2]
[358375112,1745013031934,-500.0,0.00018166,2]
[358375113,1745013031943,-500.0,0.00018166,2]
[358375114,1745013031951,-500.0,0.00018166,2]
[358375115,1745013031959,-500.0,0.00018166,2]
[358375116,1745013031968,-500.0,0.00018166,2]
[358375117,1745013031976,-500.0,0.00018166,2]
[358375118,1745013031984,-500.0,0.00018166,2]
[358375119,1745013031993,-500.0,0.00018166,2]
[358375120,1745013032002,-500.0,0.00018166,2]
[358375121,1745013032012,-500.0,0.00018166,2]
[358375122,1745013032022,-500.0,0.00018166,2]
[358375123,1745013032031,-500.0,0.00018166,2]
[358375124,1745013032041,-500.0,0.00018166,2]
[358375125,1745013032050,-500.0,0.00018166,2]
[358375126,1745013032060,-500.0,0.00018166,2]
[358375127,1745013032070,-500.0,0.00018166,2]
[358375128,1745013032080,-625.74282561,0.00018166,2]
[358375129,1745013032089,-625.74282561,0.00018166,2]
[358375130,1745013032100,-625.74282561,0.00018166,2]
[358375131,1745013032110,-625.74282561,0.00018166,2]
[358375132,1745013032120,-625.74282561,0.00018166,2]
[358375133,1745013032129,-625.74282561,0.00018166,2]
[358375134,1745013032139,-625.74282561,0.00018166,2]
[358375135,1745013032149,-625.74282561,0.00018166,2]
[358375136,1745013032158,-625.74282561,0.00018166,2]
[358375137,1745013032168,-625.74282561,0.00018166,2]
[358375138,1745013032178,-625.74282561,0.00018166,2]
[358375139,1745013032188,-625.74282561,0.00018166,2]
[358375140,1745013032198,-625.74282561,0.00018166,2]
[358375141,1745013032208,-625.74282561,0.00018166,2]
[358375142,1745013032218,-625.74282561,0.00018166,2]
[358375143,1745013032228,-625.74282561,0.00018166,2]
[358375144,1745013032238,-625.74282561,0.00018166,2]
[358375145,1745013032247,-625.74282561,0.00018166,2]
[358375146,1745013032256,-625.74282561,0.00018166,2]
[358375147,1745013032266,-625.74282561,0.00018166,2]
[358375148,1745013032276,-625.74282561,0.00018166,2]
[358375149,1745013032286,-625.74282561,0.00018166,2]
[358375150,1745013032296,-625.74282561,0.00018166,2]
[358375151,1745013032306,-625.74282561,0.00018166,2]
[358375152,1745013032316,-625.74282561,0.00018166,2]
[358375153,1745013032326,-625.74282561,0.00018166,2]
[358375154,1745013032335,-625.74282561,0.00018166,2]
[358375155,1745013032345,-625.74282561,0.00018166,2]
[358375156,1745013032354,-625.74282561,0.00018166,2]
[358375157,1745013032364,-625.74282561,0.00018166,2]
[358375158,1745013032373,-625.74282561,0.00018166,2]
[358375159,1745013032383,-625.74282561,0.00018166,2]
[358375160,1745013032393,-625.74282561,0.00018166,2]
[358375161,1745013032403,-625.74282561,0.00018166,2]
[358375162,1745013032412,-621.42735784,0.00018166,2]
[358375163,1745013032423,-621.42735784,0.00018166,2]
[358375164,1745013032433,-621.42735784,0.00018166,2]
[358375165,1745013032444,-621.42735784,0.00018166,2]
[358375166,1745013032454,-621.42735784,0.00018166,2]
[358375167,1745013032464,-621.42735784,0.00018166,2]
[358375168,1745013032473,-621.42735784,0.00018166,2]
[358375169,1745013032484,-621.42735784,0.00018166,2]
[358375170,1745013032493,-621.42735784,0.00018166,2]
[358375171,1745013032502,-621.42735784,0.00018166,2]
[358375172,1745013032512,-621.42735784,0.00018166,2]
[358375173,1745013032521,-621.42735784,0.00018166,2]
[358375174,1745013032531,-621.42735784,0.00018166,2]
[358375175,1745013032541,-621.42735784,0.00018166,2]
[358375176,1745013032552,-621.42735784,0.00018166,2]
[358375177,1745013032561,-621.42735784,0.00018166,2]
[358375178,1745013032571,-621.42735784,0.00018166,2]
[358375179,1745013032580,-621.42735784,0.00018166,2]
[358375180,1745013032591,-621.42735784,0.00018166,2]
[358375181,1745013032602,-621.42735784,0.00018166,2]
[358375182,1745013032613,-621.42735784,0.00018166,2]
[358375183,1745013032622,-621.42735784,0.00018166,2]
[358375184,1745013032634,-627.18131485,0.00018166,2]
[358375185,1745013032646,-627.18131485,0.00018166,2]
[358375186,1745013032658,-627.18131485,0.00018166,2]
[358375187,1745013032667,-627.18131485,0.00018166,2]
[358375188,1745013032676,-627.18131485,0.00018166,2]
[358375189,1745013032686,-627.18131485,0.00018166,2]
[358375190,1745013032695,-627.18131485,0.00018166,2]
[358375191,1745013032704,-627.18131482,0.00018166,2]
[358375192,1745013032715,-322.2529732,0.00018167,2]
[358375193,1745013032725,-14875.70920815,0.00018167,2]
[358375194,1745013032735,-340.09,0.0001817,2]
[358375195,1745013032745,-500.0,0.00018173,2]
[358375196,1745013032755,-500.0,0.00018173,2]
[358375197,1745013032764,-500.0,0.00018173,2]
[358375198,1745013032773,-503.5,0.00018173,2]
[358375199,1745013032783,-507.44063842,0.00018173,2]
[358375200,1745013032792,-500.0,0.00018173,2]
[358375201,1745013032802,-500.0,0.00018173,2]
[358375202,1745013032811,-500.0,0.00018173,2]
[358375203,1745013032822,-500.0,0.00018173,2]
[358375204,1745013032838,-500.0,0.00018173,2]
[358375205,1745013032848,-500.0,0.00018173,2]
[358375206,1745013032860,-500.0,0.00018173,2]
[358375207,1745013032871,-385.39333941,0.00018173,2]
[358375208,1745013032881,-500.0,0.00018173,2]
[358375209,1745013032893,-500.0,0.00018173,2]
[358375210,1745013032904,-500.0,0.00018173,2]
[358375211,1745013032914,-500.0,0.00018173,2]
[358375212,1745013032924,-500.0,0.00018173,2]
[358375213,1745013032935,-151.0,0.00018189,2]
[358375214,1745013032945,-20736.73632162,0.000182,2]
[358375215,1745013033260,-5246.265744,0.000182,2]
[358375229,1745013037871,-5541.14701187,0.000182,2]
[358375231,1745013037984,-100174.48687951,0.000182,2]
[358375232,1745013037996,-402.55363394,0.000182,2]
[358375233,1745013038008,-1444.79257705,0.000182,2]
[358375234,1745013038020,-686.54162431,0.000182,2]
[358375235,1745013038203,-1000.0,0.000182,2]
[358375242,1745013040030,-2696.99999992,0.000182,2]
[358375244,1745013040088,-4773.83189452,0.000182,2]
[358375245,1745013040100,-16839.95122296,0.000182,2]
[358375251,1745013042797,-3498.000002,0.000182,2]
[358375252,1745013042809,-3682.13468578,0.000182,2]
[358375253,1745013042821,-530.9742743,0.000182,2]
[358375254,1745013042859,-2767.60354912,0.000182,2]
[358375255,1745013042871,-5376.0,0.000182,2]
[358375256,1745013042883,-635.07944737,0.000182,2]
[358375257,1745013042894,-2086.8534869,0.000182,2]
[358375264,1745013045981,-12954.41473508,0.000182,2]
[358375265,1745013045993,-751.1637604,0.000182,2]
[358375273,1745013193887,6111.2423399,0.00017145,2]
[358375274,1745013225783,1081.40934543,0.00018,2]
[358375276,1745013291375,159.0991751,0.00017966,2]
[358375277,1745013292053,159.09917509,0.00017974,2]
[358375278,1745013292344,159.09917509,0.00017983,2]
[358375279,1745013292650,159.09917509,0.00017991,2]
[358375280,1745013293125,159.09917509,0.00017999,2]
[358375281,1745013351231,5801.3411071,0.00017099,2]
[358375282,1745013431118,946.23317726,0.00017966,2]
[358375283,1745013463350,5174.76265815,0.00017966,2]
[358375284,1745013557311,1088.02718616,0.00018,2]
[358375285,1745013560060,-223.29019612,0.00018022,2]
[358375286,1745013562907,708.6594955,0.00017091,2]
[358375291,1745013641609,827.95403012,0.00017966,2]
[358375294,1745013741501,344.082601,0.00017064,2]
[358375296,1745013846878,724.45977632,0.00017966,2]
[358375297,1745013898252,825.76370972,0.00018,2]
[358375309,1745014052216,633.90230428,0.00017966,2]
[358375352,1745014231958,-300.0,0.00018062,2]
[358375354,1745014231968,-35.31272754,0.00018062,2]
[358375356,1745014231980,-264.68727246,0.00018062,2]
[358375358,1745014231990,-28.92288409,0.00018063,2]
[358375362,1745014232016,-375.71111867,0.00018063,2]
[358375364,1745014232026,-500.0,0.00018063,2]
[358375366,1745014232036,-500.0,0.00018063,2]
[358375368,1745014232046,-500.0,0.00018063,2]
[358375371,1745014232057,-167.31451529,0.00018063,2]
[358375373,1745014232067,-452.62151089,0.00018063,2]
[358375375,1745014232077,-500.0,0.00018063,2]
[358375376,1745014232086,-500.0,0.00018063,2]
[358375379,1745014232097,-500.0,0.00018063,2]
[358375380,1745014232106,-500.0,0.00018063,2]
[358375383,1745014232116,-500.0,0.00018063,2]
[358375385,1745014232127,-500.0,0.00018063,2]
[358375387,1745014232136,-500.0,0.00018063,2]
[358375389,1745014232146,-500.0,0.00018063,2]
[358375391,1745014232155,-500.0,0.00018063,2]
[358375392,1745014232164,-500.0,0.00018063,2]
[358375394,1745014232174,-500.0,0.00018063,2]
[358375397,1745014232183,-500.0,0.00018063,2]
[358375398,1745014232193,-500.0,0.00018063,2]
[358375401,1745014232203,-500.0,0.00018063,2]
[358375403,1745014232212,-500.0,0.00018063,2]
[358375405,1745014232222,-500.0,0.00018063,2]
[358375407,1745014232231,-500.0,0.00018063,2]
[358375409,1745014232240,-500.0,0.00018063,2]
[358375411,1745014232250,-500.0,0.00018063,2]
[358375413,1745014232259,-500.0,0.00018063,2]
[358375415,1745014232268,-550.0,0.00018063,2]
[358375417,1745014232277,-500.0,0.00018063,2]
[358375419,1745014232287,-500.0,0.00018063,2]
[358375421,1745014232297,-500.0,0.00018063,2]
[358375423,1745014232306,-500.0,0.00018063,2]
[358375425,1745014232320,-500.0,0.00018063,2]
[358375427,1745014232330,-23873.55025786,0.00018064,2]
[358375429,1745014232340,-1000.0,0.00018066,2]
[358375431,1745014232351,-250.0,0.00018066,2]
[358375433,1745014232360,-151.0,0.00018089,2]
[358375435,1745014232369,-500.0,0.00018099,2]
[358375437,1745014232379,-222.91215465,0.00018099,2]
[358375439,1745014232389,-500.0,0.00018099,2]
[358375441,1745014232399,-500.0,0.00018099,2]
[358375443,1745014232409,-26184.86736349,0.000181,2]
[358375445,1745014232422,-10090.20584027,0.000181,2]
[358375448,1745014232434,-5055.96887672,0.000181,2]
[358375483,1745014240390,-1609.96346841,0.000181,2]
[358375484,1745014240403,-1842.15314621,0.000181,2]
[358375485,1745014240415,-364.44410502,0.000181,2]
[358375486,1745014240425,-176.4444386,0.000181,3]
[358375487,1745014240679,-2623.88513934,0.000181,3]
[358375488,1745014240689,-14297.54884466,0.000181,2]
[358375489,1745014240701,-87213.11972856,0.000181,2]
[358375490,1745014240713,-72494.22613926,0.000181,2]
[358375491,1745014240724,-377.27573304,0.000181,2]
[358375495,1745014243064,-1927.01570117,0.000181,2]
[358375496,1745014243123,-6143.45331048,0.000181,2]
[358375497,1745014243135,-23773.93460642,0.000181,2]
[358375515,1745014246245,-527.1500001,0.000181,2]
[358375516,1745014246303,-3352.28748774,0.000181,2]
[358375517,1745014273223,1000.0,0.00017962,2]
[358375524,1745014417149,872.16678551,0.00017963,2]
[358375525,1745014417552,222.91894758,0.00017998,2]
[358375526,1745014561174,370000.0,0.00018,2]
[358375530,1745014680172,344803.82016086,0.00018,2]
[358375557,1745015270950,392.51966692,0.00018,2]
[358375558,1745015274942,6649.66853746,0.00016,2]
[358375559,1745015296239,1489.56442766,0.000125,2]
[358375560,1745015316570,600.8137213,0.00017,2]
[358375561,1745015319670,205.37630788,0.000175,4]
[358375607,1745015432251,-300.0,0.00018089,2]
[358375609,1745015432261,-16.563934,0.00018089,2]
[358375619,1745015432346,-283.436066,0.00018089,2]
[358375622,1745015432356,-583.870739,0.0001809,2]
[358375678,1745015438209,-500.0,0.0001809,2]
[358375679,1745015438219,-255.8897517,0.0001809,2]
[358375681,1745015438295,-244.1102483,0.0001809,2]
[358375682,1745015438305,-500.043,0.0001809,2]
[358375683,1745015438315,-352.45742882,0.0001809,2]
[358375684,1745015438328,-471.54538709,0.0001809,2]
[358375685,1745015438341,-1512.58486121,0.0001809,2]
[358375691,1745015440531,-500.0,0.0001809,2]
[358375694,1745015440542,-344.49900159,0.0001809,2]
[358375696,1745015440551,-8395.76524248,0.0001809,2]
[358375698,1745015440561,-159.0,0.00018355,2]
[358375700,1745015440571,-1013.0323373,0.00018432,2]
[358375702,1745015440581,-274.973165,0.00018622,2]
[358375704,1745015440591,-250.0,0.00018747,2]
[358375706,1745015440600,-612.89131323,0.000192,2]
[358375708,1745015440610,-500.0,0.000193,2]
[358375719,1745015440837,-500.0,0.000193,2]
[358375720,1745015440848,-500.0,0.000193,2]
[358375721,1745015440862,-300.0,0.000193,2]
[358375722,1745015440879,-500.0,0.000193,2]
[358375723,1745015440890,-500.0,0.000193,2]
[358375724,1745015440902,-500.0,0.000193,2]
[358375725,1745015440912,-500.0,0.000193,2]
[358375726,1745015440921,-500.0,0.000193,2]
[358375727,1745015440931,-500.0,0.000193,2]
[358375728,1745015440941,-420.0,0.00019736,2]
[358375729,1745015440950,-814.71702905,0.000198,2]
[358375730,1745015440961,-420.0,0.00019832,2]
[358375731,1745015440971,-500.0,0.00019899,2]
[358375732,1745015440980,-367.363385,0.00019899,2]
[358375733,1745015440990,-500.0,0.00019899,2]
[358375734,1745015441002,-500.0,0.00019899,2]
[358375735,1745015441011,-38534.14812816,0.000199,2]
[358375747,1745015443284,-500.0,0.0001809,2]
[358375748,1745015443295,-500.0,0.0001809,2]
[358375749,1745015443306,-500.0,0.0001809,2]
[358375750,1745015443316,-500.0,0.0001809,2]
[358375751,1745015443326,-500.0,0.0001809,2]
[358375752,1745015443338,-500.0,0.0001809,2]
[358375753,1745015443348,-500.0,0.0001809,2]
[358375754,1745015443358,-500.0,0.0001809,2]
[358375755,1745015443368,-500.0,0.0001809,2]
[358375756,1745015443378,-500.0,0.0001809,2]
[358375757,1745015443388,-300.0,0.00019899,2]
[358375758,1745015443398,-10232.44419515,0.000199,2]
[358375759,1745015443410,-1933.78,0.000199,2]
[358375760,1745015443422,-84679.07425957,0.000199,2]
[358375761,1745015443434,-530.17827491,0.000199,2]
[358375770,1745015446484,-500.0,0.0001809,2]
[358375771,1745015446494,-500.0,0.0001809,2]
[358375772,1745015446504,-500.0,0.0001809,2]
[358375773,1745015446514,-500.0,0.0001809,2]
[358375774,1745015446524,-500.0,0.0001809,2]
[358375775,1745015446534,-500.0,0.0001809,2]
[358375776,1745015446543,-515.68829666,0.0001809,2]
[358375777,1745015446552,-500.0,0.0001809,2]
[358375778,1745015446562,-500.0,0.0001809,2]
[358375779,1745015446572,-6558.37878932,0.000199,2]
[358375780,1745015446582,-1584.40294772,0.000199,2]
[358375781,1745015446592,-814.71702902,0.00020304,2]
[358375782,1745015446602,-12559.7366029,0.00020473,2]
[358375783,1745015446612,-160.0,0.00020473,2]
[358375784,1745015446622,-160.0,0.00020473,2]
[358375785,1745015446632,-544.0,0.00020662,2]
[358375786,1745015446642,-1584.40294749,0.00020797,3]
[358375787,1745015446651,-814.71702902,0.00020809,2]
[358375788,1745015446661,-600.0,0.00020944,2]
[358375789,1745015446671,-829.9,0.00021011,15]
[358375790,1745015446681,-2248.0,0.00021044,2]
[358375791,1745015446691,-814.71702902,0.00021313,2]
[358375792,1745015446701,-587.0,0.00021532,2]
[358375793,1745015446711,-1994.8575715,0.000216,2]
[358375794,1745015446721,-975.95891315,0.00021693,3]
[358375795,1745015446734,-608.44403434,0.00021693,3]
[358375796,1745015446744,-272.313,0.00021697,2]
[358375797,1745015446753,-160.0,0.00021728,2]
[358375798,1745015446763,-160.0,0.00021728,2]
[358375799,1745015446773,-839.29847495,0.00021728,2]
[358375800,1745015446786,-587.0,0.00021744,2]
[358375801,1745015446796,-9.512659,0.000218,2]
[358375802,1745015446808,-224.857341,0.000218,2]
[358375803,1745015446818,-489.95654873,0.00021817,2]
[358375804,1745015526462,250.0,0.00017989,2]
[358375956,1745016632747,-300.0,0.00019464,2]
[358375957,1745016632758,-6033.67103448,0.00019465,2]
[358375958,1745016632771,-3314.29308636,0.00019465,2]
[358375959,1745016632783,-15552.03587916,0.00019465,2]
[358375960,1745016632793,-240.418449,0.00019519,2]
[358375961,1745016632803,-231.7357308,0.00019625,2]
[358375962,1745016632813,-151.0,0.0002,2]
[358375963,1745016632823,-272.87892678,0.00020364,2]
[358375964,1745016632833,-500.0,0.00020463,2]
[358375965,1745016632842,-397.7623351,0.00020463,2]
[358375966,1745016632852,-3727.19394638,0.00020464,2]
[358375967,1745016632862,-3727.19394638,0.00020464,2]
[358375968,1745016632872,-3727.19394638,0.00020464,2]
[358375969,1745016632882,-3727.19394638,0.00020464,2]
[358375970,1745016632892,-3727.19394638,0.00020464,2]
[358375971,1745016632902,-3727.19394638,0.00020464,2]
[358375972,1745016632912,-3735.47659959,0.00020464,2]
[358375973,1745016632922,-3735.47659959,0.00020464,2]
[358375974,1745016632932,-3735.47659959,0.00020464,2]
[358375975,1745016632943,-3735.47659959,0.00020464,2]
[358375976,1745016632954,-3735.47659959,0.00020464,2]
[358375977,1745016632964,-3735.47659959,0.00020464,2]
[358375978,1745016632974,-3735.47659959,0.00020464,2]
[358375979,1745016632984,-3735.47659959,0.00020464,2]
[358375980,1745016632994,-3735.47659959,0.00020464,2]
[358375981,1745016633004,-3735.47659959,0.00020464,2]
[358375982,1745016633014,-3735.47659959,0.00020464,2]
[358375983,1745016633023,-3735.47659959,0.00020464,2]
[358375984,1745016633034,-3735.47659959,0.00020464,2]
[358375985,1745016633044,-3735.47659959,0.00020464,2]
[358375986,1745016633054,-3735.47659959,0.00020464,2]
[358375987,1745016633065,-3735.47659959,0.00020464,2]
[358375988,1745016633075,-3735.47659959,0.00020464,2]
[358375989,1745016633085,-3735.4765996,0.00020464,2]
[358375990,1745016633096,-3735.4765996,0.00020464,2]
[358375991,1745016633106,-300.0,0.00020464,2]
[358375992,1745016633117,-360.940155,0.00020465,2]
[358375993,1745016633127,-360.940155,0.00020465,2]
[358375994,1745016633137,-12553.36997132,0.00020468,2]
[358375995,1745016633146,-160.0,0.00020468,2]
[358375996,1745016633156,-160.0,0.00020468,2]
[358375997,1745016633167,-839.29847495,0.00020468,2]
[358375998,1745016633177,-160.0,0.00020469,2]
[358375999,1745016633188,-67115.88525533,0.00020469,2]
[358376000,1745016633199,-1400.16478897,0.00020469,3]
[358376001,1745016633209,-500.0,0.00020473,2]
[358376002,1745016633219,-500.0,0.00020473,2]
[358376003,1745016633229,-300.0,0.00020473,2]
[358376004,1745016633239,-500.0,0.00020473,2]
[358376005,1745016633250,-500.0,0.0002052,2]
[358376006,1745016633259,-500.0,0.0002052,2]
[358376007,1745016633270,-550.20729676,0.0002052,2]
[358376008,1745016633282,-500.0,0.0002052,2]
[358376009,1745016633292,-151.0,0.0002052,2]
[358376010,1745016633302,-360.940155,0.0002052,2]
[358376011,1745016633312,-360.940155,0.0002052,2]
[358376012,1745016633322,-500.0,0.00020525,2]
[358376013,1745016633333,-500.0,0.00020525,2]
[358376014,1745016633343,-500.0,0.00020525,2]
[358376015,1745016633353,-500.0,0.00020525,2]
[358376016,1745016633363,-500.0,0.00020525,2]
[358376017,1745016633375,-500.0,0.00020525,2]
[358376018,1745016633385,-272.87892677,0.00020702,2]
[358376019,1745016633395,-1468.2437685,0.000209,3]
[358376020,1745016633405,-465.95869095,0.0002099,2]
[358376021,1745016633418,-3005.45,0.00021,3]
[358376022,1745016633427,-707.0,0.00021034,2]
[358376023,1745016633437,-544.0,0.00021034,2]
[358376024,1745016633448,-250.311,0.00021034,2]
[358376025,1745016633458,-272.87892677,0.00021041,2]
[358376026,1745016633468,-420.0,0.00021206,2]
[358376027,1745016633479,-151.0,0.00021389,2]
[358376028,1745016633488,-151.0,0.00021526,2]
[358376029,1745016633498,-198.0,0.00021663,2]
[358376030,1745016633508,-1468.24376827,0.00021762,3]
[358376031,1745016633518,-210.93,0.000218,2]
[358376032,1745016633529,-176.69761266,0.00021816,2]
[358376033,1745016633539,-551.15105892,0.00021816,2]